fUST/lending_fUST_20260101
["ID","MTS","AMOUNT","RATE_DAILY","PERIOD"]
[400228646,1767207032706,-1500.0,0.00014368,2]
[400228647,1767207032715,-1500.0,0.00014368,2]
[400228648,1767207032724,-1500.0,0.00014368,2]
[400228649,1767207032734,-1500.0,0.00014368,2]
[400228650,1767207032743,-1500.0,0.00014368,2]
[400228651,1767207032752,-1695.32,0.00014512,2]
[400228652,1767207032761,-280.1451753,0.00014551,2]
[400228653,1767207032770,-333.14270749,0.00014551,2]
[400228654,1767207032780,-436.18457637,0.00014578,2]
[400228655,1767207032789,-1158.79000739,0.0001464,2]
[400228656,1767207032798,-900.0,0.00014768,2]
[400228657,1767207032808,-738.24477536,0.00014791,2]
[400228658,1767207032817,-1500.0,0.00014795,2]
[400228659,1767207032826,-1163.70037163,0.00014795,2]
[400228660,1767207032836,-1500.0,0.00014795,2]
[400228661,1767207032845,-1500.0,0.00014795,2]
[400228662,1767207032854,-1500.0,0.00014795,2]
[400228663,1767207032863,-1500.0,0.00014795,2]
[400228664,1767207032873,-1500.0,0.00014795,2]
[400228665,1767207032883,-1500.0,0.00014795,2]
[400228666,1767207032893,-369.29883846,0.00014891,2]
[400228667,1767207032904,-3891.21,0.00014896,2]
[400228668,1767207032913,-1000.0,0.00014916,2]
[400228669,1767207032922,-1058.75071031,0.00014916,2]
[400228670,1767207032933,-2000.0,0.00014916,2]
[400228671,1767207032942,-179.25919058,0.00014916,2]
[400228672,1767207032952,-2000.0,0.00014916,2]
[400228673,1767207032962,-2000.0,0.00014916,2]
[400228674,1767207032971,-2000.0,0.00014916,2]
[400228675,1767207032980,-2000.0,0.00014916,2]
[400228676,1767207032990,-1158.79000739,0.00014918,2]
[400228677,1767207032999,-333.14270749,0.00014962,2]
[400228678,1767207033008,-100000.0,0.0001499,2]
[400228679,1767207033020,-337.601553,0.00015068,2]
[400228680,1767207033033,-800.0,0.00015068,2]
[400228681,1767207033046,-587.0,0.00015108,2]
[400228682,1767207033060,-1158.79000739,0.00015197,2]
[400228683,1767207033073,-1200.0,0.00015316,2]
[400228684,1767207033084,-2000.0,0.00015342,2]
[400228685,1767207033096,-2000.0,0.00015342,2]
[400228686,1767207033108,-775.85673877,0.00015342,2]
[400228687,1767207033120,-2000.0,0.00015342,2]
[400228688,1767207033133,-1000.0,0.00015342,2]
[400228689,1767207033147,-1000.0,0.00015342,2]
[400228690,1767207033159,-2000.0,0.00015342,2]
[400228691,1767207033172,-280.1451753,0.00015373,2]
[400228692,1767207033185,-333.14270749,0.00015373,2]
[400228693,1767207033197,-2500.0,0.00015464,2]
[400228694,1767207033209,-2500.0,0.00015464,2]
[400228695,1767207033222,-2500.0,0.00015464,2]
[400228696,1767207033235,-2500.0,0.00015464,2]
[400228697,1767207033248,-2500.0,0.00015464,2]
[400228698,1767207033261,-1158.79000739,0.00015475,2]
[400228699,1767207033274,-1159.94879739,0.00015753,2]
[400228700,1767207033286,-333.14270749,0.00015784,2]
[400228701,1767207033299,-4948.49043632,0.0001579,2]
[400228702,1767207033310,-1500.0,0.00015864,2]
[400228703,1767207033320,-1316.28464555,0.0001589,2]
[400228704,1767207033332,-1537.62568073,0.0001589,2]
[400228705,1767207033344,-500.0,0.0001589,2]
[400228706,1767207033356,-2500.0,0.0001589,2]
[400228707,1767207033368,-3000.0,0.00016012,2]
[400228708,1767207033381,-2500.0,0.00016012,2]
[400228709,1767207033393,-1108.47131211,0.00016012,2]
[400228710,1767207033407,-3000.0,0.00016012,2]
[400228711,1767207033421,-3000.0,0.00016012,2]
[400228712,1767207033434,-5188.28,0.00016042,2]
[400228713,1767207033446,-1600.0,0.00016164,2]
[400228714,1767207033456,-280.42532047,0.00016195,2]
[400228715,1767207033467,-333.4758502,0.00016195,2]
[400228716,1767207033478,-1800.0,0.00016412,2]
[400228717,1767207033490,-154.70459329,0.00016438,2]
[400228718,1767207033503,-163.94220134,0.00016438,2]
[400228719,1767207033516,-3000.0,0.00016438,2]
[400228720,1767207033529,-259.68662252,0.00016438,2]
[400228721,1767207033540,-200.38225762,0.00016473,2]
[400228722,1767207033551,-1908.05046056,0.0001656,2]
[400228723,1767207033563,-3500.0,0.0001656,2]
[400228724,1767207033576,-3500.0,0.0001656,2]
[400228725,1767207033588,-511.0,0.00016576,2]
[400228726,1767207033599,-502.72120667,0.00016578,2]
[400228727,1767207033610,-250.0,0.00016585,2]
[400228728,1767207033620,-1328.84059564,0.00016897,2]
[400228729,1767207033632,-2100.0,0.0001696,2]
[400228730,1767207033643,-3500.0,0.00016986,2]
[400228731,1767207033654,-664.73790924,0.00017014,2]
[400228732,1767207033665,-239.6,0.00017093,2]
[400228733,1767207033677,-4000.0,0.00017108,2]
[400228734,1767207033688,-4000.0,0.00017108,2]
[400228735,1767207033699,-6485.35,0.00017188,2]
[400228736,1767207033711,-2402.30645193,0.0001726,2]
[400228737,1767207033722,-191.67853572,0.00017364,2]
[400228738,1767207033733,-2400.0,0.00017508,2]
[400228739,1767207033744,-4000.0,0.00017534,2]
[400228740,1767207033755,-205.09165159,0.00017537,2]
[400228741,1767207033766,-4500.0,0.00017656,2]
[400228742,1767207033777,-4500.0,0.00017656,2]
[400228743,1767207033788,-1041.66666667,0.00017871,2]
[400228744,1767207033799,-1776.51697318,0.00018056,2]
[400228745,1767207033810,-4500.0,0.00018082,2]
[400228746,1767207033822,-4920.70420138,0.00018204,2]
[400228747,1767207033833,-5000.0,0.00018204,2]
[400228748,1767207033844,-7782.42,0.00018334,2]
[400228749,1767207033855,-337.601553,0.00018493,2]
[400228750,1767207033866,-569.25783696,0.00018578,2]
[400228751,1767207033878,-4436.1426325,0.0001863,2]
[400228752,1767207033892,-5500.0,0.00018752,2]
[400228753,1767207033903,-453.33223932,0.000189,2]
[400228754,1767207033914,-239.6,0.00018939,2]
[400228755,1767207033927,-8972.593239,0.00019092,2]
[400228756,1767207033938,-773.69,0.00019178,2]
[400228757,1767207033949,-773.69,0.00019178,2]
[400228758,1767207033960,-773.69,0.00019178,2]
[400228759,1767207033972,-773.69,0.00019178,2]
[400228760,1767207033983,-773.69,0.00019178,2]
[400228761,1767207033994,-773.69,0.00019178,2]
[400228762,1767207034005,-773.69,0.00019178,2]
[400228763,1767207034016,-773.69,0.00019178,2]
[400228764,1767207034027,-773.69,0.00019178,2]
[400228765,1767207034037,-773.69,0.00019178,2]
[400228766,1767207034048,-773.69,0.00019178,2]
[400228767,1767207034060,-773.69,0.00019178,2]
[400228768,1767207034071,-773.69,0.00019178,2]
[400228769,1767207034082,-773.69,0.00019178,2]
[400228770,1767207034093,-773.69,0.00019178,2]
[400228771,1767207034104,-773.69,0.00019178,2]
[400228772,1767207034115,-773.69,0.00019178,2]
[400228773,1767207034126,-773.69,0.00019178,2]
[400228774,1767207034136,-773.69,0.00019178,2]
[400228775,1767207034147,-773.69,0.00019178,2]
[400228776,1767207034158,-773.69,0.00019178,2]
[400228777,1767207034169,-773.69,0.00019178,2]
[400228778,1767207034180,-773.69,0.00019178,2]
[400228779,1767207034191,-773.83,0.00019178,2]
[400228780,1767207034202,-165.22,0.000192,2]
[400228781,1767207034213,-159.87,0.000192,2]
[400228782,1767207034224,-12143.98,0.000192,2]
[400228783,1767207034235,-1324.78,0.000192,2]
[400228784,1767207034247,-3000.0,0.000193,2]
[400228785,1767207034258,-9079.49,0.0001948,2]
[400228786,1767207034267,-4948.49043632,0.00019562,2]
[400228787,1767207034276,-1597.50710874,0.0002,2]
[400228788,1767207034285,-635.79446725,0.00020578,2]
[400228789,1767207034294,-10376.56,0.00020626,2]
[400228790,1767207034304,-239.6,0.00020786,2]
[400228791,1767207034313,-10000.0,0.00021021,2]
[400228792,1767207034475,-11673.63,0.00021772,2]
[400228793,1767207034489,-260.08767073,0.00021917,2]
[400228794,1767207034498,-1014.87,0.00021917,2]
[400228795,1767207034508,-1000.0,0.00021917,2]
[400228796,1767207034517,-189.52494036,0.00021917,2]
[400228797,1767207034526,-500.0,0.00021917,2]
[400228798,1767207034536,-500.0,0.00021917,2]
[400228799,1767207034545,-500.0,0.00021917,2]
[400228800,1767207034554,-1000.0,0.00021917,2]
[400228801,1767207034563,-500.0,0.00021917,2]
[400228802,1767207034573,-500.0,0.00021917,2]
[400228803,1767207034583,-500.0,0.00021917,2]
[400228804,1767207034592,-500.0,0.00021917,2]
[400228805,1767207034602,-500.0,0.00021917,2]
[400228806,1767207034611,-500.0,0.00021917,2]
[400228807,1767207034620,-193.50134335,0.00021917,2]
[400228808,1767207034629,-610.26,0.00021917,2]
[400228809,1767207034639,-500.0,0.00021917,2]
[400228810,1767207034649,-880.25413617,0.00021917,2]
[400228811,1767207034658,-1371.98,0.00021917,2]
[400228812,1767207034667,-500.0,0.00021917,2]
[400228813,1767207034677,-504.41364337,0.00021917,2]
[400228814,1767207034687,-1196.44,0.00021917,2]
[400228815,1767207034696,-627.83552003,0.00021917,2]
[400228816,1767207034705,-500.0,0.00021917,2]
[400228817,1767207034714,-500.0,0.00021917,2]
[400228818,1767207034723,-508.03,0.00021917,2]
[400228819,1767207034732,-500.0,0.00021917,2]
[400228820,1767207034741,-500.0,0.00021917,2]
[400228821,1767207034750,-550.2260527,0.00021917,2]
[400228822,1767207034759,-2796.18,0.00021917,2]
[400228823,1767207034768,-5713.32,0.00021917,2]
[400228824,1767207034778,-447.91539096,0.00021917,2]
[400228825,1767207034787,-374.71260428,0.00021917,2]
[400228826,1767207034797,-500.0,0.00021917,2]
[400228827,1767207034806,-874.95,0.00021917,2]
[400228828,1767207034815,-500.0,0.00021917,2]
[400228829,1767207034824,-500.0,0.00021917,2]
[400228830,1767207034834,-2265.65,0.00021917,2]
[400228831,1767207034843,-9696.43,0.00021917,2]
[400228832,1767207034853,-337.5324406,0.00021917,2]
[400228833,1767207034863,-500.0,0.00021917,2]
[400228834,1767207034872,-500.0,0.00021917,2]
[400228835,1767207034884,-500.0,0.00021917,2]
[400228836,1767207034893,-524.16,0.00021917,2]
[400228837,1767207034902,-500.0,0.00021917,2]
[400228838,1767207034912,-679.28,0.00021917,2]
[400228839,1767207034922,-500.0,0.00021917,2]
[400228840,1767207034930,-580.59,0.00021917,2]
[400228841,1767207034939,-500.0,0.00021917,2]
[400228842,1767207034948,-546.52,0.00021917,2]
[400228843,1767207034959,-651.97,0.00021917,2]
[400228844,1767207034968,-290.82034444,0.00021917,2]
[400228845,1767207034978,-500.0,0.00021917,2]
[400228846,1767207034987,-337.601553,0.00021918,2]
[400228847,1767207034996,-275.96070951,0.00021918,2]
[400228848,1767207035006,-208.32,0.00022,2]
[400228849,1767207035016,-156.46,0.00022,7]
[400228850,1767207035025,-1014.87,0.00022191,2]
[400228851,1767207035034,-1000.0,0.00022191,2]
[400228852,1767207035043,-500.0,0.00022191,2]
[400228853,1767207035053,-500.0,0.00022191,2]
[400228854,1767207035062,-500.0,0.00022191,2]
[400228855,1767207035072,-1000.0,0.00022191,2]
[400228856,1767207035082,-500.0,0.00022191,2]
[400228857,1767207035091,-500.0,0.00022191,2]
[400228858,1767207035100,-500.0,0.00022191,2]
[400228859,1767207035110,-500.0,0.00022191,2]
[400228860,1767207035119,-500.0,0.00022191,2]
[400228861,1767207035128,-500.0,0.00022191,2]
[400228862,1767207035137,-610.26,0.00022191,2]
[400228863,1767207035146,-604.91477,0.00022191,2]
[400228864,1767207035155,-1371.98,0.00022191,2]
[400228865,1767207035165,-501.92749062,0.00022191,2]
[400228866,1767207035174,-1196.44,0.00022191,2]
[400228867,1767207035184,-500.0,0.00022191,2]
[400228868,1767207035193,-500.0,0.00022191,2]
[400228869,1767207035202,-508.03,0.00022191,2]
[400228870,1767207035212,-500.0,0.00022191,2]
[400228871,1767207035221,-245.40571301,0.00022191,2]
[400228872,1767207035230,-961.24535256,0.00022191,2]
[400228873,1767207035245,-1834.93464744,0.00022191,2]
[400228874,1767207035254,-5713.32,0.00022191,2]
[400228875,1767207035263,-500.0,0.00022191,2]
[400228876,1767207035272,-271.69025702,0.00022191,2]
[400228877,1767207035283,-603.25974298,0.00022191,2]
[400228878,1767207035293,-235.4799962,0.00022191,2]
[400228879,1767207035304,-81.30200046,0.00022191,2]
[400228880,1767207035314,-272.7185069,0.00022191,2]
[400228889,1767207037763,-299.07995219,0.00013698,2]
[400228890,1767207037776,-200.92004781,0.00013698,2]
[400228891,1767207037786,-500.0,0.00013698,2]
[400228892,1767207037796,-500.0,0.00013698,2]
[400228893,1767207037805,-500.0,0.00013698,2]
[400228894,1767207037814,-500.0,0.00013698,2]
[400228895,1767207037824,-500.0,0.00013698,2]
[400228896,1767207037834,-1247.75,0.00021917,2]
[400228897,1767207037843,-227.2814931,0.00022191,2]
[400228898,1767207037852,-2265.65,0.00022191,2]
[400228899,1767207037862,-9696.43,0.00022191,2]
[400228900,1767207037871,-500.0,0.00022191,2]
[400228901,1767207037881,-500.0,0.00022191,2]
[400228902,1767207037894,-500.0,0.00022191,2]
[400228903,1767207037904,-524.16,0.00022191,2]
[400228904,1767207037913,-500.0,0.00022191,2]
[400228905,1767207037923,-17750.38973997,0.00022191,2]
[400228906,1767207037933,-679.28,0.00022191,2]
[400228907,1767207037942,-500.0,0.00022191,2]
[400228908,1767207037951,-580.59,0.00022191,2]
[400228909,1767207037961,-500.0,0.00022191,2]
[400228910,1767207037971,-546.52,0.00022191,2]
[400228911,1767207037980,-651.97,0.00022191,2]
[400228912,1767207037990,-500.0,0.00022191,2]
[400228913,1767207038000,-1247.75,0.00022191,2]
[400228914,1767207038010,-2002.0561663,0.00022293,2]
[400228915,1767207038019,-1000.0,0.00022465,2]
[400228916,1767207038029,-500.0,0.00022465,2]
[400228917,1767207038038,-500.0,0.00022465,2]
[400228918,1767207038048,-500.0,0.00022465,2]
[400228919,1767207038058,-1000.0,0.00022465,2]
[400228920,1767207038068,-500.0,0.00022465,2]
[400228921,1767207038078,-500.0,0.00022465,2]
[400228922,1767207038088,-500.0,0.00022465,2]
[400228923,1767207038098,-500.0,0.00022465,2]
[400228924,1767207038108,-610.26,0.00022465,2]
[400228925,1767207038118,-1371.98,0.00022465,2]
[400228926,1767207038127,-1196.44,0.00022465,2]
[400228927,1767207038137,-194.49007806,0.00022465,2]
[400228928,1767207038146,-488.41846043,0.00022465,2]
[400228929,1767207038155,-508.03,0.00022465,2]
[400228930,1767207038165,-500.0,0.00022465,2]
[400228931,1767207038174,-5713.32,0.00022465,2]
[400228932,1767207038183,-500.0,0.00022465,2]
[400228933,1767207038192,-874.95,0.00022465,2]
[400228934,1767207038203,-500.0,0.00022465,2]
[400228935,1767207038212,-2265.65,0.00022465,2]
[400228936,1767207038221,-9696.43,0.00022465,2]
[400228937,1767207038231,-465.09067796,0.00022465,2]
[400228938,1767207038240,-500.0,0.00022465,2]
[400228939,1767207038249,-500.0,0.00022465,2]
[400228940,1767207038258,-524.16,0.00022465,2]
[400228941,1767207038267,-500.0,0.00022465,2]
[400228942,1767207038277,-679.28,0.00022465,2]
[400228943,1767207038286,-500.0,0.00022465,2]
[400228944,1767207038295,-580.59,0.00022465,2]
[400228945,1767207038304,-500.0,0.00022465,2]
[400228946,1767207038314,-546.52,0.00022465,2]
[400228947,1767207038323,-651.97,0.00022465,2]
[400228948,1767207038331,-500.0,0.00022465,2]
[400228949,1767207038341,-1247.75,0.00022465,2]
[400228950,1767207038350,-186.53544915,0.00022575,7]
[400228951,1767207038359,-702.33109755,0.00022578,2]
[400228952,1767207038369,-239.6,0.00022632,2]
[400228953,1767207038379,-1000.0,0.00022739,2]
[400228954,1767207038388,-500.0,0.00022739,2]
[400228955,1767207038397,-500.0,0.00022739,2]
[400228956,1767207038407,-500.0,0.00022739,2]
[400228957,1767207038417,-1000.0,0.00022739,2]
[400228958,1767207038426,-500.0,0.00022739,2]
[400228959,1767207038435,-500.0,0.00022739,2]
[400228960,1767207038446,-610.26,0.00022739,2]
[400228961,1767207038455,-1371.98,0.00022739,2]
[400228962,1767207038464,-1196.44,0.00022739,2]
[400228963,1767207038474,-508.03,0.00022739,2]
[400228964,1767207038485,-500.0,0.00022739,2]
[400228965,1767207038495,-5713.32,0.00022739,2]
[400228966,1767207038506,-500.0,0.00022739,2]
[400228967,1767207038515,-874.95,0.00022739,2]
[400228968,1767207038525,-500.0,0.00022739,2]
[400228969,1767207038535,-2265.65,0.00022739,2]
[400228970,1767207038544,-9696.43,0.00022739,2]
[400228971,1767207038554,-500.0,0.00022739,2]
[400228972,1767207038564,-500.0,0.00022739,2]
[400228973,1767207038574,-524.16,0.00022739,2]
[400228974,1767207038583,-500.0,0.00022739,2]
[400228975,1767207038594,-679.28,0.00022739,2]
[400228976,1767207038603,-636.30921461,0.00022739,2]
[400228977,1767207038613,-580.59,0.00022739,2]
[400228978,1767207038623,-500.0,0.00022739,2]
[400228979,1767207038633,-546.52,0.00022739,2]
[400228980,1767207038642,-651.97,0.00022739,2]
[400228981,1767207038652,-500.0,0.00022739,2]
[400228982,1767207038662,-1247.75,0.00022739,2]
[400228983,1767207038671,-873665.76355811,0.0002277,2]
[400228984,1767207038680,-12143.98,0.000228,2]
[400228985,1767207038690,-1324.78,0.000228,14]
[400228986,1767207038699,-12970.7,0.00022917,2]
[400228987,1767207038709,-446.719113,0.00023007,2]
[400228988,1767207038718,-924.08865171,0.00023013,2]
[400228989,1767207038728,-500.0,0.00023013,2]
[400228990,1767207038737,-500.0,0.00023013,2]
[400228991,1767207038748,-500.0,0.00023013,2]
[400228992,1767207038757,-999.99999997,0.00023013,2]
[400228993,1767207038767,-500.0,0.00023013,2]
[400228994,1767207038776,-574.21869989,0.00023013,2]
[400228995,1767207038785,-610.26,0.00023013,2]
[400228996,1767207038794,-1371.98,0.00023013,2]
[400228997,1767207038804,-1196.44,0.00023013,2]
[400228998,1767207038813,-508.03,0.00023013,2]
[400228999,1767207038822,-500.0,0.00023013,2]
[400229000,1767207038832,-5713.32,0.00023013,2]
[400229001,1767207038841,-500.0,0.00023013,2]
[400229002,1767207038850,-874.95,0.00023013,2]
[400229003,1767207038860,-500.0,0.00023013,2]
[400229004,1767207038869,-2265.65,0.00023013,2]
[400229005,1767207038879,-9696.43,0.00023013,2]
[400229006,1767207038891,-500.0,0.00023013,2]
[400229007,1767207038901,-549.83481305,0.00023013,2]
[400229008,1767207038911,-524.16,0.00023013,2]
[400229009,1767207038920,-581.17889985,0.00023013,2]
[400229010,1767207038930,-679.28,0.00023013,2]
[400229011,1767207038941,-580.59,0.00023013,2]
[400229012,1767207038950,-500.0,0.00023013,2]
[400229013,1767207038963,-546.52,0.00023013,2]
[400229014,1767207038972,-651.97,0.00023013,2]
[400229015,1767207038982,-210.61918659,0.00023013,2]
[400229016,1767207038991,-1247.75,0.00023013,2]
[400229017,1767207039000,-500.0,0.00023287,2]
[400229018,1767207039011,-500.0,0.00023287,2]
[400229019,1767207039021,-500.0,0.00023287,2]
[400229020,1767207039030,-610.26,0.00023287,2]
[400229021,1767207039039,-1371.98,0.00023287,2]
[400229022,1767207039049,-1196.44,0.00023287,2]
[400229023,1767207039059,-508.03,0.00023287,2]
[400229024,1767207039069,-5713.32,0.00023287,2]
[400229025,1767207039079,-874.95,0.00023287,2]
[400229026,1767207039088,-500.0,0.00023287,2]
[400229027,1767207039098,-2265.65,0.00023287,2]
[400229028,1767207039108,-9696.43,0.00023287,2]
[400229029,1767207039117,-500.0,0.00023287,2]
[400229030,1767207039127,-524.16,0.00023287,2]
[400229031,1767207039136,-679.28,0.00023287,2]
[400229032,1767207039146,-580.59,0.00023287,2]
[400229033,1767207039156,-500.0,0.00023287,2]
[400229034,1767207039167,-546.52,0.00023287,2]
[400229035,1767207039177,-651.97,0.00023287,2]
[400229036,1767207039187,-1247.75,0.00023287,2]
[400229037,1767207039196,-4948.49043632,0.00023334,2]
[400229038,1767207039206,-500.0,0.00023561,2]
[400229039,1767207039216,-500.0,0.00023561,2]
[400229040,1767207039226,-500.0,0.00023561,2]
[400229041,1767207039235,-610.26,0.00023561,2]
[400229042,1767207039245,-1371.98,0.00023561,2]
[400229043,1767207039375,-1196.44,0.00023561,2]
[400229044,1767207039386,-508.03,0.00023561,2]
[400229045,1767207039397,-5713.32,0.00023561,2]
[400229046,1767207039407,-874.95,0.00023561,2]
[400229047,1767207039417,-500.0,0.00023561,2]
[400229048,1767207039427,-2265.65,0.00023561,2]
[400229049,1767207039437,-9696.43,0.00023561,2]
[400229050,1767207039447,-500.0,0.00023561,2]
[400229051,1767207039457,-524.16,0.00023561,2]
[400229052,1767207039466,-679.28,0.00023561,2]
[400229053,1767207039476,-580.59,0.00023561,2]
[400229054,1767207039486,-500.0,0.00023561,2]
[400229055,1767207039496,-546.52,0.00023561,2]
[400229056,1767207039506,-651.97,0.00023561,2]
[400229057,1767207039516,-500.0,0.00023835,2]
[400229058,1767207039526,-369.26572285,0.00023835,2]
[400229059,1767207039536,-500.0,0.00023835,2]
[400229060,1767207039545,-610.26,0.00023835,2]
[400229062,1767207039555,-1371.98,0.00023835,2]
[400229065,1767207039565,-1196.44,0.00023835,2]
[400229068,1767207039574,-508.03,0.00023835,2]
[400229071,1767207039584,-5713.32,0.00023835,2]
[400229073,1767207039594,-874.95,0.00023835,2]
[400229076,1767207039604,-500.0,0.00023835,2]
[400229078,1767207039614,-2265.65,0.00023835,2]
[400229080,1767207039623,-9696.43,0.00023835,2]
[400229082,1767207039633,-500.0,0.00023835,2]
[400229084,1767207039643,-524.16,0.00023835,2]
[400229086,1767207039653,-679.28,0.00023835,2]
[400229088,1767207039663,-580.59,0.00023835,2]
[400229090,1767207039673,-500.0,0.00023835,2]
[400229092,1767207039683,-546.52,0.00023835,2]
[400229094,1767207039692,-651.97,0.00023835,2]
[400229095,1767207039702,-745.49557094,0.000239,2]
[400229096,1767207039711,-745.49557087,0.000239,2]
[400229097,1767207039721,-745.49557087,0.000239,2]
[400229098,1767207039731,-745.49557087,0.000239,2]
[400229099,1767207039740,-745.49557087,0.000239,2]
[400229100,1767207039750,-745.49557087,0.000239,2]
[400229101,1767207039759,-745.49557087,0.000239,2]
[400229103,1767207039769,-745.49557087,0.000239,2]
[400229104,1767207039778,-500.0,0.00024109,2]
[400229106,1767207039787,-610.26,0.00024109,2]
[400229108,1767207039796,-1371.98,0.00024109,2]
[400229110,1767207039805,-1196.44,0.00024109,2]
[400229112,1767207039815,-508.03,0.00024109,2]
[400229114,1767207039824,-5713.32,0.00024109,2]
[400229116,1767207039833,-874.95,0.00024109,2]
[400229118,1767207039843,-500.0,0.00024109,2]
[400229120,1767207039852,-2265.65,0.00024109,2]
[400229121,1767207039862,-9696.43,0.00024109,2]
[400229123,1767207039872,-500.0,0.00024109,2]
[400229125,1767207039884,-524.16,0.00024109,2]
[400229127,1767207039894,-679.28,0.00024109,2]
[400229129,1767207039904,-580.59,0.00024109,2]
[400229131,1767207039914,-500.0,0.00024109,2]
[400229133,1767207039924,-546.52,0.00024109,2]
[400229135,1767207039934,-651.97,0.00024109,2]
[400229137,1767207039944,-500.0,0.00024383,2]
[400229139,1767207039953,-610.26,0.00024383,2]
[400229141,1767207039964,-1371.98,0.00024383,2]
[400229143,1767207039974,-1196.44,0.00024383,2]
[400229145,1767207039984,-508.03,0.00024383,2]
[400229147,1767207039993,-5713.32,0.00024383,2]
[400229149,1767207040002,-874.95,0.00024383,2]
[400229151,1767207040012,-500.0,0.00024383,2]
[400229153,1767207040022,-2265.65,0.00024383,2]
[400229155,1767207040032,-9696.43,0.00024383,2]
[400229157,1767207040041,-500.0,0.00024383,2]
[400229159,1767207040051,-524.16,0.00024383,2]
[400229161,1767207040060,-679.28,0.00024383,2]
[400229163,1767207040070,-580.59,0.00024383,2]
[400229164,1767207040080,-546.52,0.00024383,2]
[400229166,1767207040089,-651.97,0.00024383,2]
[400229168,1767207040099,-745.49557087,0.00024435,2]
[400229170,1767207040108,-239.6,0.00024478,2]
[400229172,1767207040117,-768.86772784,0.00024578,2]
[400229174,1767207040127,-1203.18233645,0.00024657,2]
[400229176,1767207040136,-500.0,0.00024657,2]
[400229178,1767207040146,-610.26,0.00024657,2]
[400229180,1767207040155,-1371.98,0.00024657,2]
[400229182,1767207040165,-1196.44,0.00024657,2]
[400229184,1767207040174,-508.03,0.00024657,2]
[400229186,1767207040183,-5713.32,0.00024657,2]
[400229187,1767207040193,-874.95,0.00024657,2]
[400229189,1767207040202,-500.0,0.00024657,2]
[400229192,1767207040212,-2265.65,0.00024657,2]
[400229194,1767207040222,-9696.43,0.00024657,2]
[400229196,1767207040236,-500.0,0.00024657,2]
[400229198,1767207040246,-524.16,0.00024657,2]
[400229200,1767207040255,-679.28,0.00024657,2]
[400229202,1767207040265,-580.59,0.00024657,2]
[400229204,1767207040274,-546.52,0.00024657,2]
[400229206,1767207040284,-651.97,0.00024657,2]
[400229207,1767207040295,-150.0,0.00024658,2]
[400229209,1767207040305,-150.0,0.00024658,2]
[400229211,1767207040315,-156.46,0.000247,7]
[400229213,1767207040325,-1080.36507781,0.00024756,2]
[400229215,1767207040334,-180.0,0.00024767,14]
[400229217,1767207040344,-208.32,0.000249,2]
[400229219,1767207040353,-153.744785,0.000249,7]
[400229221,1767207040363,-153.744785,0.000249,7]
[400229223,1767207040373,-153.744785,0.000249,7]
[400229225,1767207040382,-153.744785,0.000249,7]
[400229227,1767207040392,-579.465896,0.000249,7]
[400229229,1767207040402,-579.465896,0.000249,7]
[400229231,1767207040412,-579.465896,0.000249,7]
[400229233,1767207040421,-579.465896,0.000249,7]
[400229235,1767207040432,-151.0,0.000249,7]
[400229237,1767207040441,-612.575308,0.000249,7]
[400229239,1767207040451,-612.575308,0.000249,7]